bitfinex/quotes_ETHUSD_20240701
["timestamp","ask_amount","ask_price","bid_price","bid_amount"]
[1719825388651,0.0626696,3485.9,3485.5,2.2966]
[1719825390623,0.02937972,3486.1,3485.6,0.806]
[1719825390829,0.06273428,3486.0,3485.6,0.806]
[1719825391037,0.06273428,3486.0,3485.6,0.884074]
[1719825391230,0.06273428,3486.0,3485.5,2.2966]
[1719825391554,0.06273428,3486.0,3485.5,6.02899403]
[1719825391740,0.06273428,3486.0,3485.9,3.291]
[1719825391940,2.86813,3486.6,3485.9,3.291]
[1719825391941,3.0,3486.5,3485.9,6.15964]
[1719825392237,3.0,3486.5,3486.1,0.806]
[1719825392445,0.06082408,3486.4,3486.3,0.806]
[1719825392923,2.86804,3486.7,3486.3,0.806]
[1719825393127,0.06082968,3486.4,3486.3,0.806]
[1719825393328,2.86804,3486.7,3486.3,0.806]
[1719825393592,0.06082968,3486.4,3486.3,0.806]
[1719825393881,0.06090699,3486.4,3486.0,0.05736674]
[1719825394026,2.89749972,3486.6,3486.0,0.05736674]
[1719825394232,0.06099586,3486.3,3486.0,0.05736674]
[1719825394479,2.89749972,3486.6,3486.0,0.05736674]
[1719825394767,0.06093119,3486.2,3486.0,0.05736674]
[1719825394954,2.89749972,3486.6,3486.0,0.05736674]
[1719825395158,0.06086653,3486.1,3486.0,0.05736674]
[1719825395328,2.89749972,3486.6,3486.0,0.05736674]
[1719825395775,2.92932517,3486.5,3485.9,2.485]
[1719825395979,2.95870489,3486.5,3485.9,3.291]
[1719825396667,2.86847,3486.2,3485.6,2.286]
[1719825396892,0.02937972,3486.1,3485.6,2.286]
[1719825397045,0.02937972,3486.1,3485.2,17.16056178]
[1719825397046,2.86868,3486.0,3485.3,3.67513]
[1719825397246,2.86868,3486.0,3485.3,2.86913]
[1719825397440,2.86868,3486.0,3485.3,3.67513]
[1719825397441,0.06079431,3485.9,3485.3,3.67513]
[1719825397642,2.89815972,3485.8,3485.2,2.286]
[1719825397879,0.06079431,3485.9,3485.2,3.092]
[1719825398184,2.86874,3485.9,3485.2,3.092]
[1719825398359,0.0606841,3485.8,3485.2,3.092]
[1719825399388,0.0606841,3485.8,3485.2,2.286]
[1719825399583,0.0606841,3485.8,3485.1,9.39308905]
[1719825399584,0.35655448,3485.8,3485.1,6.52373905]
[1719825399747,2.86903,3485.5,3485.1,6.52373905]
[1719825400590,2.92956826,3485.4,3485.1,6.52373905]
[1719825401575,2.92956826,3485.4,3485.1,7.32973905]
[1719825402666,0.06045826,3485.4,3485.1,7.32973905]
[1719825402987,2.89847972,3485.5,3485.1,7.32973905]
[1719825403367,0.06044913,3485.4,3485.1,7.32973905]
[1719825403688,2.89847972,3485.5,3485.1,0.806]
[1719825403989,2.8691,3485.5,3485.1,0.806]
[1719825404176,0.06044913,3485.4,3485.1,0.806]
[1719825406490,2.92955913,3485.4,3484.9,0.806]
[1719825407199,0.06044913,3485.4,3485.1,0.806]
[1719825413603,0.06044913,3485.4,3484.8,5.2627652]
[1719825413786,0.06044913,3485.4,3485.0,0.806]
[1719825414291,2.92955913,3485.4,3485.0,0.806]
[1719825415478,2.92955913,3485.4,3484.8,5.20538]
[1719825415680,2.92955913,3485.4,3485.0,0.806]
[1719825416612,0.06044913,3485.4,3485.0,0.806]
[1719825416939,0.06044913,3485.4,3485.2,0.806]
[1719825417409,2.89807972,3485.9,3485.2,3.67525]
[1719825417574,0.0582149,3485.3,3485.2,3.73262964]
[1719825417778,2.89807972,3485.9,3485.2,3.67525]
[1719825417979,0.0582149,3485.3,3485.2,3.67525]
[1719825418175,2.89807972,3485.9,3485.2,3.67525]
[1719825418418,0.0582149,3485.3,3485.2,3.67525]
[1719825418613,2.89807972,3485.9,3485.2,3.67525]
[1719825418812,0.0582149,3485.3,3485.2,3.67525]
[1719825419017,2.86878,3485.8,3485.2,3.67525]
[1719825419520,0.05847366,3485.7,3485.2,3.67525]
[1719825420323,0.08785338,3485.7,3485.2,0.806]
[1719825420483,2.95671338,3485.7,3485.2,0.806]
[1719825420697,2.4118,3485.6,3485.0,3.67538]
[1719825421044,2.47022019,3485.6,3485.0,3.67538]
[1719825422506,2.86911,3485.4,3484.8,2.3358]
[1719825422863,2.49959991,3485.6,3484.7,0.806]
[1719825422864,0.08760583,3485.3,3484.7,0.806]
[1719825423067,0.08760583,3485.3,3484.2,12.17]
[1719825423068,5.20424,3484.9,3484.2,12.46373929]
[1719825423356,5.20424,3484.9,3484.1,2.338]
[1719825423357,2.86961,3484.8,3484.3,0.806]
[1719825423506,2.92749715,3484.8,3484.3,0.806]
[1719825423705,2.86961,3484.8,3484.3,0.806]
[1719825423920,0.05782243,3484.7,3484.3,0.806]
[1719825424247,2.86961,3484.8,3484.3,0.806]
[1719825424573,0.05782243,3484.7,3484.5,0.806]
[1719825424849,5.20424,3484.9,3484.5,0.806]
[1719825425055,0.05788715,3484.8,3484.5,0.806]
[1719825425353,2.92749715,3484.8,3484.5,0.806]
[1719825426036,2.92749715,3484.8,3484.2,2.92748493]
[1719825426237,2.92749715,3484.8,3484.5,0.806]
[1719825427247,2.89906972,3484.7,3484.1,6.52373905]
[1719825427407,0.05773318,3484.6,3484.1,6.52373905]
[1719825427604,2.89906972,3484.7,3484.1,6.52373905]
[1719825427605,2.89906972,3484.7,3484.2,0.806]
[1719825427944,2.92750318,3484.6,3484.1,6.52373905]
[1719825428309,2.86977,3484.6,3484.1,6.52373905]
[1719825429923,2.86977,3484.6,3484.2,0.806]
[1719825430614,0.02937972,3484.5,3484.2,0.806]
[1719825430809,0.02937972,3484.5,3484.1,6.52373905]
[1719825431058,0.02937972,3484.5,3484.1,7.32973905]
[1719825432968,0.02937972,3484.5,3484.1,6.52373905]
[1719825433168,0.02937972,3484.5,3484.2,0.806]
[1719825433373,2.86977,3484.6,3484.2,0.806]
[1719825438155,2.86985,3484.5,3484.2,0.806]
[1719825438468,0.05759352,3484.4,3484.2,0.806]
[1719825438865,2.86985,3484.5,3484.2,0.806]
[1719825439089,0.05759352,3484.4,3484.2,0.806]
[1719825439488,2.86985,3484.5,3484.2,0.806]
[1719825439642,0.05752879,3484.3,3484.2,0.806]
[1719825439838,2.86985,3484.5,3484.2,0.806]
[1719825440074,0.05759352,3484.4,3484.2,0.806]
[1719825440952,2.86978,3484.6,3484.2,0.806]
[1719825441165,2.86978,3484.6,3484.0,2.87022]
[1719825441483,2.86978,3484.6,3484.3,0.806]
[1719825441858,0.05765825,3484.5,3484.3,0.806]
[1719825443480,0.02937972,3485.2,3484.7,2.86964]
[1719825443481,2.4944,3485.2,3484.7,2.86964]
[1719825443683,2.86903,3485.5,3485.1,0.806]
[1719825443881,2.8692,3485.3,3485.1,0.806]
[1719825445299,2.86937,3485.1,3484.5,6.52373905]
[1719825445582,5.35047,3485.1,3484.8,0.806]
[1719825445750,2.4811,3485.1,3484.8,0.806]
[1719825446144,2.86953,3484.9,3484.5,6.52373905]
[1719825446344,0.02937972,3484.8,3484.5,6.52373905]
[1719825446552,2.86976,3484.6,3484.5,6.52373905]
[1719825446750,2.86976,3484.6,3483.8,2.4049677]
[1719825446751,3.2871,3484.6,3483.8,6.53320675]
[1719825446977,2.86996,3484.4,3483.8,6.53320675]
[1719825447190,2.86996,3484.4,3483.9,0.806]
[1719825447559,2.87008,3484.3,3483.8,6.53320675]
[1719825447788,2.89925972,3484.5,3483.8,6.53320675]
[1719825447789,2.8701,3484.2,3483.8,6.53320675]
[1719825448209,2.89930972,3484.4,3483.9,0.806]
[1719825448419,2.89930972,3484.4,3484.1,0.806]
[1719825449219,2.89922972,3484.5,3484.1,0.806]
[1719825450210,2.86993,3484.4,3484.1,0.806]
[1719825451008,0.02937972,3484.5,3484.1,0.806]
[1719825451317,5.35092,3484.6,3484.3,0.806]
[1719825451318,2.4811,3484.6,3484.3,0.806]
[1719825451862,2.4811,3484.6,3483.9,2.92768125]
[1719825452073,2.4811,3484.6,3484.0,1.6579588]
[1719825452270,2.4811,3484.6,3483.9,2.87028]
[1719825452271,5.35088,3484.6,3483.9,2.87028]
[1719825454115,3.0,3484.7,3484.1,2.87017]
[1719825456320,5.8697,3484.7,3484.1,2.87017]
[1719825456675,3.0,3484.7,3484.1,2.87017]
[1719825457091,0.05242832,3484.6,3484.1,2.87017]
[1719825457894,0.05242832,3484.6,3484.1,4.10327949]
[1719825459300,0.08180804,3484.6,3484.1,4.10327949]
[1719825460300,0.05242832,3484.6,3484.2,2.87008]
[1719825460850,0.05242832,3484.6,3484.1,1.23310949]
[1719825461526,0.05242832,3484.6,3484.1,4.10325949]
[1719825462547,0.05242832,3484.6,3484.2,2.92746806]
[1719825462735,5.28196,3484.9,3484.2,3.57314276]
[1719825463368,0.05242371,3484.8,3484.2,3.57314276]
[1719825465183,0.05242371,3484.8,3484.3,2.87001]
[1719825466989,2.92203371,3484.8,3484.2,0.70307276]
[1719825467191,2.92203371,3484.8,3484.1,4.10325949]
[1719825467596,2.95141343,3484.8,3484.1,4.10325949]
[1719825471271,2.92203371,3484.8,3484.1,4.16065586]
[1719825472519,2.86968,3484.7,3484.1,4.16065586]
[1719825472907,2.4375675,3484.6,3484.1,4.16065586]
[1719825474196,2.4375675,3484.6,3484.1,4.10325949]
[1719825475379,2.4375675,3484.6,3484.2,0.808]
[1719825475805,2.4375675,3484.6,3484.2,3.67809]
[1719825476014,2.4375675,3484.6,3484.2,4.46198059]
[1719825476214,0.0523675,3484.6,3484.2,1.59189059]
[1719825476420,0.0523675,3484.6,3484.5,6.5477]
[1719825476619,2.3459,3485.2,3484.7,2.86967]
[1719825476825,2.3459,3485.2,3484.9,0.808]
[1719825477023,0.05095465,3485.1,3484.9,0.808]
[1719825477735,0.05089065,3485.0,3484.9,0.808]
[1719825477933,2.89840972,3485.5,3484.9,0.808]
[1719825478245,0.05089065,3485.0,3484.9,0.808]
[1719825478401,3.0,3485.4,3484.9,0.808]
[1719825478600,0.05089065,3485.0,3484.9,0.808]
[1719825479100,3.0,3485.4,3484.9,0.808]
[1719825479414,3.0,3485.4,3484.3,6.52373905]
[1719825479415,0.05085475,3485.0,3484.6,0.808]
[1719825479608,2.3396,3485.2,3484.6,0.808]
[1719825479838,2.36897972,3485.2,3484.6,0.808]
[1719825480035,0.05100177,3485.1,3484.6,0.808]
[1719825480197,0.05100177,3485.1,3484.3,6.52373905]
[1719825480198,2.89881972,3485.0,3484.3,6.52373905]
[1719825480404,2.3396,3484.7,3484.3,6.52373905]
[1719825480634,2.3396,3484.7,3484.2,0.808]
[1719825480804,0.05077762,3484.6,3484.1,2.87015]
[1719825481007,5.20929,3484.7,3484.1,3.67815]
[1719825481543,5.20929,3484.7,3484.3,0.808]
[1719825481741,0.05077762,3484.6,3484.3,0.808]
[1719825482126,0.05077762,3484.6,3484.3,3.678]
[1719825482434,0.05077762,3484.6,3484.3,0.808]
[1719825489014,0.05077762,3484.6,3484.3,3.67801]
[1719825490058,0.05077762,3484.6,3484.4,2.86985]
[1719825490267,0.05077762,3484.6,3484.5,0.808]
[1719825490638,5.3201,3485.6,3484.8,2.8696]
[1719825490841,2.89840972,3485.5,3485.1,0.808]
[1719825491146,0.05115961,3485.5,3485.1,0.808]
[1719825491924,2.92017961,3485.5,3485.1,0.808]
[1719825492164,2.86918,3485.4,3484.7,2.86965]
[1719825492377,2.91838549,3485.4,3484.8,0.808]
[1719825492573,0.04920549,3485.4,3484.8,3.67759]
[1719825495792,2.91832549,3485.4,3484.8,3.73497555]
[1719825495939,2.91832549,3485.4,3484.8,0.808]
[1719825495940,2.8692,3485.3,3484.8,0.808]
[1719825496279,2.91834433,3485.3,3484.8,0.808]
[1719825497583,0.04914433,3485.3,3484.8,0.808]
[1719825498252,0.04914433,3485.3,3484.8,3.67759]
[1719825499841,6.98288293,3485.5,3484.8,3.67759]
[1719825500046,0.04886629,3485.2,3484.8,3.67759]
[1719825500247,5.86903,3485.5,3484.8,3.67759]
[1719825500481,0.04880158,3485.1,3484.8,3.67759]
[1719825500682,5.86903,3485.5,3484.9,2.86951]
[1719825500884,5.86903,3485.5,3484.8,2.86959]
[1719825500885,0.04873687,3485.0,3484.8,2.86959]
[1719825501562,9.32713969,3485.6,3485.2,0.808]
[1719825502086,0.0489939,3485.5,3485.2,0.808]
[1719825503299,0.0489939,3485.5,3485.4,0.808]
[1719825503644,3.02937972,3485.8,3485.4,0.808]
[1719825504270,0.04727008,3485.7,3485.4,0.808]
[1719825504478,0.04727008,3485.7,3485.6,0.808]
[1719825504696,2.4155,3486.0,3485.6,3.67692]
[1719825504865,0.04727044,3485.7,3485.6,2.86892]
[1719825505181,2.3614,3486.3,3485.8,2.86877]
[1719825505343,2.3614,3486.3,3485.9,0.808]
[1719825505549,2.39077972,3486.3,3485.7,2.8688]
[1719825505741,2.39077972,3486.3,3485.9,0.808]
[1719825508161,2.89782972,3486.2,3485.6,0.808]
[1719825508367,2.89782972,3486.2,3485.5,2.86898]
[1719825508570,2.89782972,3486.2,3485.5,3.67698]
[1719825508773,2.89782972,3486.2,3485.6,2.86894]
[1719825509079,3.58744618,3486.2,3485.6,2.86894]
[1719825510549,3.58744618,3486.2,3485.5,0.808]
[1719825511011,2.86862,3486.0,3485.5,0.808]
[1719825513397,0.02937972,3486.1,3485.5,3.67701]
[1719825513916,0.02937972,3486.1,3485.5,0.808]
[1719825514291,2.89790972,3486.1,3485.5,0.808]
[1719825515007,2.89790972,3486.1,3485.5,3.67702]
[1719825515220,2.89790972,3486.1,3485.7,0.808]
[1719825516910,2.86863,3486.0,3485.7,0.808]
[1719825517078,2.91434464,3486.0,3485.7,0.808]
[1719825517281,0.04571464,3486.0,3485.7,0.808]
[1719825518017,2.91432464,3486.0,3485.5,0.808]
[1719825520580,2.86871,3485.9,3485.2,5.73848]
[1719825520781,2.91435996,3485.9,3485.5,0.808]
[1719825521215,0.04564996,3485.9,3485.5,0.808]
[1719825521430,0.04564996,3485.9,3485.4,2.86904]
[1719825521431,0.04564996,3485.9,3485.7,0.808]
[1719825521711,2.86865,3486.0,3485.7,0.808]
[1719825521892,0.04558527,3485.8,3485.7,0.808]
[1719825522093,2.86865,3486.0,3485.7,0.808]
[1719825522342,0.04558527,3485.8,3485.5,0.808]
[1719825522512,2.86865,3486.0,3485.5,0.808]
[1719825522711,0.04555647,3485.7,3485.5,0.808]
[1719825523104,0.04549178,3485.6,3485.5,3.67702]
[1719825523406,2.89790972,3486.1,3485.5,3.67702]
[1719825523638,2.89790972,3486.1,3485.7,0.808]
[1719825524651,5.86832,3486.4,3485.7,0.808]
[1719825524837,0.02937972,3486.3,3485.7,0.808]
[1719825525890,2.86845,3486.2,3485.7,0.808]
[1719825526009,2.86894,3485.6,3485.4,6.52373905]
[1719825526210,2.86924,3485.3,3484.8,6.52373905]
[1719825528162,2.89840972,3485.5,3484.9,0.808]
[1719825528663,2.86911,3485.4,3484.9,0.808]
[1719825530931,2.86919,3485.3,3484.9,0.808]
[1719825532115,0.04562055,3485.2,3484.9,0.808]
[1719825532531,2.86919,3485.3,3484.9,0.808]
[1719825532729,0.0455555,3485.1,3484.9,0.808]
[1719825532973,0.04549079,3485.0,3484.9,0.808]
[1719825533336,2.86919,3485.3,3484.9,0.808]
[1719825533877,0.04508804,3485.2,3484.9,0.808]
[1719825534474,0.04502334,3485.1,3484.9,0.808]
[1719825534869,2.86919,3485.3,3484.9,0.808]
[1719825535072,0.04495864,3485.0,3484.9,0.808]
[1719825535283,0.02937972,3485.5,3484.9,1.401158]
[1719825535432,2.86912,3485.4,3484.9,0.808]
[1719825535633,2.91431557,3485.4,3484.9,0.808]
[1719825537772,2.91431557,3485.4,3484.8,2.86958]
[1719825538064,2.91431557,3485.4,3484.9,0.808]
[1719825538431,2.8692,3485.3,3484.9,0.808]
[1719825538668,2.91433267,3485.3,3484.9,0.808]
[1719825540941,0.04513267,3485.3,3485.2,0.808]
[1719825541370,5.22314,3485.7,3485.2,0.808]
[1719825541575,0.04512798,3485.3,3485.2,0.808]
[1719825541776,5.22314,3485.7,3485.2,0.808]
[1719825542087,0.04512798,3485.3,3485.2,0.808]
[1719825542251,5.22314,3485.7,3485.2,0.808]
[1719825542461,0.04512798,3485.3,3485.2,0.808]
[1719825542646,5.22314,3485.7,3485.2,0.808]
[1719825542984,0.04512798,3485.3,3485.2,0.808]
[1719825543144,5.22314,3485.7,3485.2,0.808]
[1719825543446,0.04532204,3485.6,3485.2,0.808]
[1719825544878,2.91427204,3485.6,3485.2,0.808]
[1719825545571,0.04532204,3485.6,3485.2,0.808]
[1719825548104,0.04532204,3485.6,3485.2,1.4716117]
[1719825548827,2.91428204,3485.6,3485.2,1.4716117]
[1719825548967,2.91428204,3485.6,3485.2,0.808]
[1719825549598,2.89840972,3485.5,3484.7,5.24793]
[1719825549824,2.4757,3485.4,3484.8,0.808]
[1719825549986,2.52087257,3485.4,3484.8,0.808]
[1719825550907,2.86929,3485.2,3484.8,0.808]
[1719825551208,0.04497849,3485.1,3484.8,0.808]
[1719825553216,2.91433849,3485.1,3484.8,0.808]
[1719825553410,2.3511,3485.0,3484.4,6.52373905]
[1719825553609,0.04469772,3485.0,3484.5,2.4884]
[1719825553809,2.86959,3484.9,3484.5,0.808]
[1719825554051,0.0447766,3484.9,3484.5,0.808]
[1719825556712,0.0447766,3484.9,3484.7,0.808]
[1719825557021,5.27100972,3485.4,3484.7,0.808]
[1719825557217,0.04471299,3484.8,3484.7,0.808]
[1719825557406,5.27100972,3485.4,3484.7,0.808]
[1719825557613,0.04471299,3484.8,3484.7,0.808]
[1719825557813,5.27100972,3485.4,3484.7,0.808]
[1719825557814,2.86936,3485.1,3484.7,0.808]
[1719825558026,0.0448113,3484.8,3484.7,0.808]
[1719825558220,2.86936,3485.1,3484.7,0.808]
[1719825558435,0.0448113,3484.8,3484.7,0.808]
[1719825558637,5.27100972,3485.4,3484.7,1.42413383]
[1719825558638,2.86928,3485.2,3484.7,1.42413383]
[1719825558807,0.0448113,3484.8,3484.7,0.808]
[1719825559007,2.86928,3485.2,3484.7,0.808]
[1719825559254,0.0448113,3484.8,3484.7,0.808]
[1719825559541,2.86928,3485.2,3484.7,0.808]
[1719825559741,0.0448113,3484.8,3484.7,0.808]
[1719825559944,2.86928,3485.2,3484.7,0.808]
[1719825560151,0.0448113,3484.8,3484.7,0.808]
[1719825560334,0.02937972,3485.2,3484.7,0.808]
[1719825560512,0.02937972,3485.2,3484.4,0.808]
[1719825560513,0.0448113,3484.8,3484.4,0.808]
[1719825560714,2.86945,3485.0,3484.4,0.808]
[1719825560925,0.04474659,3484.7,3484.4,0.808]
[1719825561115,2.86945,3485.0,3484.4,0.808]
[1719825561449,2.86968,3484.8,3484.2,2.87009]
[1719825561656,2.86968,3484.8,3484.4,0.808]
[1719825561827,0.04474659,3484.7,3484.4,0.808]
[1719825562025,2.8697,3484.7,3484.2,0.7973644]
[1719825562223,2.8697,3484.7,3484.3,0.808]
[1719825562430,0.0445645,3484.6,3484.3,0.808]
[1719825572470,0.0445645,3484.6,3484.2,0.808]
[1719825572765,2.8699,3484.5,3484.0,8.99753905]
[1719825572968,2.8699,3484.5,3484.0,0.808]
[1719825573328,0.04477027,3484.4,3484.0,0.808]
[1719825576940,2.91470027,3484.4,3483.9,2.87034]
[1719825577144,2.91470027,3484.4,3484.1,0.808]
[1719825582600,2.91470027,3484.4,3483.8,0.0094677]
[1719825582806,2.91470027,3484.4,3484.0,0.808]
[1719825583160,5.29480027,3484.4,3484.0,0.808]
[1719825584857,5.29480027,3484.4,3483.8,3.4298877]
[1719825585106,5.29480027,3484.4,3484.1,0.808]
[1719825586666,2.87001,3484.3,3484.1,0.808]
[1719825587000,2.91493554,3484.2,3484.1,0.808]
[1719825587301,2.94432526,3484.2,3483.8,0.0094677]
[1719825587465,2.3801,3484.1,3483.8,0.0094677]
[1719825587666,2.91502819,3484.0,3483.8,0.0094677]
[1719825588808,0.04470819,3484.0,3483.9,0.808]
[1719825589017,0.04470819,3484.0,3483.9,1.20522057]
[1719825589218,2.86997,3484.4,3483.9,1.20522057]
[1719825589368,0.04466454,3484.0,3483.9,0.808]
[1719825589986,2.87001,3484.3,3483.9,0.808]
[1719825590143,0.04466454,3484.0,3483.9,0.808]
[1719825590363,0.02937972,3484.2,3483.8,0.0094677]
[1719825590643,2.87021,3484.1,3483.8,0.8174677]
[1719825590941,0.04466095,3484.0,3483.8,0.8174677]
[1719825593868,2.8701,3484.2,3483.8,0.8174677]
[1719825594009,0.0446728,3484.1,3483.8,0.8174677]
[1719825598983,0.0446728,3484.1,3483.8,0.0094677]
[1719825599273,2.9148528,3484.1,3483.8,0.0094677]
[1719825600350,3.73714305,3484.1,3483.8,0.0094677]
[1719825600883,5.34372,3484.0,3483.8,0.0094677]
[1719825601035,0.04423129,3483.9,3483.8,0.0094677]
[1719825604530,2.89942972,3484.3,3483.8,0.8174677]
[1719825604785,0.04422339,3483.9,3483.8,0.8174677]
[1719825605109,0.04421693,3483.9,3483.8,0.8174677]
[1719825605236,2.87001,3484.3,3483.8,0.8174677]
[1719825605434,0.04441114,3484.2,3483.8,0.8174677]
[1719825605647,2.87001,3484.3,3483.8,0.8174677]
[1719825605868,0.04441114,3484.2,3483.8,0.8174677]
[1719825606068,2.87001,3484.3,3483.8,0.8174677]
[1719825606274,0.04441151,3484.2,3483.8,0.8174677]
[1719825606477,2.8701,3484.2,3483.8,0.8174677]
[1719825606783,0.04434677,3484.1,3483.8,0.0094677]
[1719825607329,2.91453677,3484.1,3483.8,0.0094677]
[1719825608171,5.25919,3484.0,3483.8,0.0094677]
[1719825608347,2.87034,3483.9,3483.8,0.0094677]
[1719825608540,2.9146702,3483.9,3483.8,0.0094677]
[1719825609398,3.41308838,3483.9,3483.8,0.0094677]
[1719825610391,8.69962838,3483.9,3483.8,0.0094677]
[1719825611095,9.50762838,3483.9,3483.8,0.0094677]
[1719825614982,12.37796838,3483.9,3483.8,0.0094677]
[1719825618307,9.50762838,3483.9,3483.8,0.0094677]
[1719825618595,8.23058992,3483.9,3483.8,0.0094677]
[1719825618792,8.18088992,3483.9,3483.8,0.0094677]
[1719825619793,8.98888992,3483.9,3483.8,0.0094677]
[1719825620969,11.85922992,3483.9,3483.8,0.0094677]
[1719825621696,15.15807086,3483.9,3483.8,0.0094677]
[1719825621858,16.21392532,3483.9,3483.8,0.0094677]
[1719825628315,19.08426532,3483.9,3483.8,0.0094677]
[1719825630217,22.10926532,3483.9,3483.8,7.7e-06]
[1719825630579,22.85926532,3483.9,3483.8,7.7e-06]
[1719825630997,22.10926532,3483.9,3483.8,7.7e-06]
[1719825631195,22.85926532,3483.9,3483.8,7.7e-06]
[1719825631450,25.72960532,3483.9,3483.8,7.7e-06]
[1719825631925,25.75191261,3483.9,3483.8,7.7e-06]
[1719825632421,25.00191261,3483.9,3483.8,7.7e-06]
[1719825635142,26.30191261,3483.9,3483.8,7.7e-06]
[1719825636241,33.15752861,3483.9,3483.8,7.7e-06]
[1719825636451,28.65200761,3483.9,3483.8,7.7e-06]
[1719825637873,26.30191261,3483.9,3483.8,7.7e-06]
[1719825640184,25.55191261,3483.9,3483.8,7.7e-06]
[1719825640352,26.00307167,3483.9,3483.8,7.7e-06]
[1719825643055,25.45307167,3483.9,3483.8,7.7e-06]
[1719825645306,33.47804067,3483.9,3483.8,7.7e-06]
[1719825645514,32.42804067,3483.9,3483.8,7.7e-06]
[1719825645719,5.74266,3482.7,3482.6,6.52373905]
[1719825646005,5.74266,3482.7,3482.0,2.3341]
[1719825646006,2.87182,3482.2,3482.0,2.3341]
[1719825646552,2.96630942,3482.1,3482.0,2.3341]
[1719825646803,2.9369297,3482.1,3482.0,2.3341]
[1719825648167,2.96630942,3482.1,3482.0,2.3341]
[1719825649264,2.96630942,3482.1,3481.7,2.3341]
[1719825649265,2.87207,3481.8,3481.7,2.3341]
[1719825649464,5.809126,3481.8,3481.7,2.3341]
[1719825649704,2.936996,3481.8,3481.7,2.3341]
[1719825650904,5.83844572,3481.8,3481.7,2.3341]
[1719825651091,2.87232,3481.5,3481.3,2.3379]
[1719825651291,2.8724,3481.4,3481.3,2.3379]
[1719825651609,2.93709216,3481.4,3481.3,2.3379]
[1719825652103,0.06469216,3481.4,3481.3,2.6690764]
[1719825654227,2.87251,3481.3,3480.8,2.4778]
[1719825654427,2.87268,3481.1,3480.8,2.4778]
[1719825654724,0.06316316,3481.0,3480.8,2.4778]
[1719825656420,2.87251,3481.3,3480.8,2.4778]
[1719825656718,2.87251,3481.3,3481.0,2.4952]
[1719825656927,0.06328952,3481.2,3481.0,2.4952]
[1719825657419,2.87251,3481.3,3481.0,2.4952]
[1719825657627,2.87257,3481.2,3481.0,2.4952]
[1719825657853,2.96522774,3481.2,3481.0,2.4952]
[1719825658820,0.06327802,3481.2,3481.0,2.89457225]
[1719825659029,0.06327802,3481.2,3481.1,0.808]
[1719825659227,2.87233,3481.5,3481.1,0.808]
[1719825659724,0.06346091,3481.4,3481.1,0.808]
[1719825659920,0.06346091,3481.4,3481.1,1.59779222]
[1719825660109,2.87202,3481.9,3481.3,3.074]
[1719825660304,2.87159,3482.4,3481.8,2.4138]
[1719825660591,2.87159,3482.4,3482.0,0.808]
[1719825661326,2.87167,3482.3,3482.0,0.808]
[1719825661920,2.87128,3482.8,3482.2,0.808]
[1719825662125,0.02937972,3482.7,3482.2,1.18173359]
[1719825662324,2.87145,3482.6,3482.2,0.808]
[1719825662525,2.87133,3482.7,3482.2,0.808]
[1719825663406,2.87133,3482.7,3482.1,2.87182]
[1719825663601,2.87117,3482.9,3482.3,0.808]
[1719825663602,2.87143,3482.6,3482.3,0.808]
[1719825664138,2.90062972,3482.8,3482.3,0.808]
[1719825664625,2.87111,3483.0,3482.5,0.808]
[1719825664824,2.87111,3483.0,3482.7,0.808]
[1719825665137,2.87111,3483.0,3482.5,0.808]
[1719825665367,2.87111,3483.0,3482.5,1.52622988]
[1719825665714,3.0,3483.2,3482.7,0.808]
[1719825666038,2.87092,3483.2,3482.7,0.808]
[1719825666239,2.87101,3483.1,3482.5,0.71822988]
[1719825666439,2.87101,3483.1,3482.6,0.55]
[1719825667141,0.05680385,3483.0,3482.6,0.55]
[1719825668035,2.87139,3482.7,3482.4,2.3209]
[1719825668237,2.87149,3482.6,3482.4,2.3209]
[1719825668436,2.92803779,3482.6,3482.4,2.3209]
[1719825668600,2.8715,3482.5,3482.4,2.3209]
[1719825668800,2.87172,3482.3,3481.9,2.3947]
[1719825669212,2.92806494,3482.2,3481.9,2.3947]
[1719825669457,0.05630494,3482.2,3481.9,2.3947]
[1719825669617,0.05630494,3482.2,3481.9,3.2027]
[1719825669814,2.90100972,3482.4,3481.9,3.66697]
[1719825669815,2.84363,3482.4,3481.9,3.66697]
[1719825670050,0.0562409,3482.1,3481.9,2.85897]
[1719825670224,2.90087972,3482.5,3482.1,0.808]
[1719825670615,0.05642092,3482.4,3482.1,0.808]
[1719825670948,2.92802092,3482.4,3482.1,0.808]
[1719825671112,2.92802092,3482.4,3482.1,1.461904]
[1719825671520,0.05642092,3482.4,3482.1,1.461904]
[1719825671847,0.02937972,3482.8,3482.1,1.461904]
[1719825672068,0.0560349,3482.3,3482.2,2.9291617]
[1719825672245,2.87102,3483.1,3482.3,2.87165]
[1719825672450,2.87102,3483.1,3482.6,3.2626]
[1719825672645,0.05678156,3483.0,3482.8,0.808]
[1719825673036,2.87102,3483.1,3482.8,0.808]
[1719825673554,0.05479886,3483.0,3482.6,3.2626]
[1719825673744,2.87102,3483.1,3482.6,2.4546]
[1719825673953,2.87102,3483.1,3482.7,0.58201886]
[1719825674254,2.90030972,3483.2,3482.7,0.58201886]
[1719825674658,0.05486287,3483.1,3482.7,0.58201886]
[1719825675121,0.05486287,3483.1,3482.8,0.55]
[1719825675714,0.02937972,3483.3,3482.8,3.42122]
[1719825675953,0.05480039,3483.2,3482.9,0.65152585]
[1719825676173,0.05480039,3483.2,3483.0,0.55]
[1719825677034,2.92573039,3483.2,3483.0,0.55]
[1719825677437,2.871,3483.1,3482.8,0.55]
[1719825677761,0.05484983,3483.0,3482.8,0.55]
[1719825679357,0.05451249,3482.9,3482.8,1.19581089]
[1719825679566,2.87095,3483.2,3482.8,1.19581089]
[1719825679738,0.05473498,3482.9,3482.8,0.55]
[1719825680060,2.87095,3483.2,3482.7,0.55]
[1719825680380,2.87101,3483.1,3482.7,0.55]